bitfinex-derivatives/quotes_SOLF0:USTF0_20250325
["timestamp","ask_amount","ask_price","bid_price","bid_amount"]
[1742925832701,0.04381923,145.03,145.01,6.8952]
[1742925832999,0.04381923,145.03,145.0,0.04709836]
[1742925833495,0.04381923,145.03,145.01,6.8952]
[1742925833690,0.04381923,145.03,145.02,25.18]
[1742925834696,6.93801923,145.03,145.02,25.18]
[1742925835303,0.04381923,145.03,145.02,25.18]
[1742925836303,6.93801923,145.03,145.02,25.18]
[1742925836506,0.04381923,145.03,145.02,25.18]
[1742925837304,0.04381923,145.03,145.02,32.0747]
[1742925839709,1.923e-05,145.03,145.02,32.0747]
[1742925844412,28.61608754,145.15,145.02,42.4232911]
[1742925844609,28.61608754,145.15,145.02,35.5232911]
[1742925844911,6.8905,145.11,145.02,35.5232911]
[1742925845614,0.04959992,145.08,145.05,0.04494413]
[1742925845809,0.04959992,145.08,145.07,6.8923]
[1742925847911,28.61608754,145.16,145.09,6.8913]
[1742925848110,28.61608754,145.16,145.1,25.18]
[1742925848514,25.18,145.17,145.1,25.18]
[1742925848714,6.8891,145.14,145.1,25.18]
[1742925849014,0.04482059,145.13,145.11,0.04440149]
[1742925854509,401.37328957,145.23,145.11,0.04440149]
[1742925854712,45.37328957,145.23,145.17,6.8873]
[1742925854910,28.61608754,145.24,145.18,25.16]
[1742925855618,0.05276666,145.22,145.2,0.04685234]
[1742925855813,6.93826666,145.22,145.2,0.04685234]
[1742925856118,0.05276666,145.22,145.2,0.04685234]
[1742925860911,0.05276666,145.22,145.2,6.93275234]
[1742925861112,6.8834,145.26,145.2,6.93275234]
[1742925861309,6.8834,145.26,145.2,6.8859]
[1742925862015,6.8838,145.25,145.2,6.8859]
[1742925862326,6.8838,145.25,145.24,0.04745686]
[1742925862614,6.8838,145.25,145.23,25.20901404]
[1742925863218,6.93607233,145.26,145.23,25.20901404]
[1742925864322,0.05257233,145.26,145.23,25.20901404]
[1742925865319,0.05257233,145.26,145.23,32.09331404]
[1742925865519,0.05257233,145.26,145.23,25.20901404]
[1742925865921,0.05257233,145.26,145.25,6.8838]
[1742925866113,0.05257233,145.26,145.23,25.20901404]
[1742925867418,0.00162466,145.26,145.25,6.8838]
[1742925868415,356.0,145.35,145.24,227.2]
[1742925868615,356.0,145.41,145.24,227.2]
[1742925868813,25.14,145.4,145.25,25.17]
[1742925869015,25.14,145.4,145.26,10.30461704]
[1742925869215,25.14,145.4,145.27,25.14]
[1742925869517,6.8798,145.34,145.32,0.04377775]
[1742925871320,68.92294992,145.35,145.32,0.04377775]
[1742925871818,62.04364992,145.35,145.32,0.04377775]
[1742925872123,0.04364992,145.35,145.32,0.04377775]
[1742925872512,0.04364992,145.35,145.34,6.8795]
[1742925876825,0.04364992,145.35,145.32,0.04377775]
[1742925876826,62.0,145.45,145.37,6.8778]
[1742925877126,6.8786,145.37,145.32,25.12]
[1742925877527,25.12,145.42,145.32,25.12]
[1742925878125,0.04877741,145.38,145.36,0.04441458]
[1742925878327,6.8782,145.37,145.36,0.04441458]
[1742925879328,6.92667741,145.38,145.36,0.04441458]
[1742925879525,0.04877741,145.38,145.36,0.04441458]
[1742925880226,62.0,145.37,145.36,0.04441458]
[1742925880523,62.0,145.37,145.36,25.16441458]
[1742925880727,0.04877741,145.38,145.36,25.16441458]
[1742925881029,0.04877741,145.38,145.36,32.04301458]
[1742925881628,0.04877741,145.38,145.36,25.16441458]
[1742925887829,6.8781,145.37,145.36,25.16441458]
[1742925888029,0.04877741,145.38,145.36,25.16441458]
[1742925888633,6.8781,145.37,145.36,25.16441458]
[1742925889540,6.92667741,145.38,145.36,25.16441458]
[1742925891133,0.04877741,145.38,145.36,25.16441458]
[1742925891635,0.04877741,145.38,145.36,32.04291458]
[1742925892933,0.04877741,145.38,145.36,25.16441458]
[1742925893435,6.92667741,145.38,145.36,25.16441458]
[1742925894839,6.8781,145.37,145.36,25.16441458]
[1742925895137,6.8781,145.37,145.36,0.04441458]
[1742925897043,0.04877741,145.38,145.36,0.04441458]
[1742925897240,0.04877741,145.38,145.37,25.12]
[1742925899140,6.92637741,145.38,145.37,25.12]
[1742925900238,0.04877741,145.38,145.37,25.12]
[1742925900939,0.04877741,145.38,145.37,31.9981]
[1742925901539,0.04877741,145.38,145.37,25.12]
[1742925902941,0.04877741,145.38,145.37,31.9981]
[1742925905440,0.04877741,145.38,145.37,25.12]
[1742925908944,6.92637741,145.38,145.37,25.12]
[1742925909145,6.92637741,145.38,145.36,0.04441458]
[1742925909341,0.04877741,145.38,145.36,0.04441458]
[1742925909940,6.8781,145.37,145.36,0.04441458]
[1742925910243,0.04877741,145.38,145.36,25.14441458]
[1742925910444,0.04877741,145.38,145.37,6.8781]
[1742925912248,0.04877741,145.38,145.36,32.02271458]
[1742925912743,6.92667741,145.38,145.36,25.14441458]
[1742925913646,0.04877741,145.38,145.36,25.14441458]
[1742925914247,6.92677741,145.38,145.36,25.14441458]
[1742925915446,0.04877741,145.38,145.36,25.14441458]
[1742925916748,6.8781,145.37,145.36,0.04441458]
[1742925919945,0.04877741,145.38,145.31,25.1]
[1742925920244,10.29763787,145.37,145.28,25.1]
[1742925920455,6.8812,145.31,145.28,25.1]
[1742925920644,10.29763787,145.37,145.28,25.1]
[1742925920841,10.29763787,145.37,145.29,6.8817]
[1742925921041,0.05245934,145.34,145.31,0.04379854]
[1742925921452,6.8805,145.32,145.31,0.04379854]
[1742925922149,0.05245934,145.34,145.31,0.04379854]
[1742925922548,0.05245934,145.34,145.32,25.1]
[1742925922950,0.05245934,145.34,145.33,6.88]
[1742925923256,28.61608754,145.42,145.32,25.1]
[1742925923948,6.8772,145.39,145.32,25.1]
[1742925924154,28.61608754,145.39,145.32,25.1]
[1742925924557,0.05183871,145.37,145.34,6.93229351]
[1742925924857,0.05183871,145.37,145.34,0.05279351]
[1742925925751,0.05183871,145.37,145.34,6.93209351]
[1742925926348,62.05183871,145.37,145.34,0.05279351]
[1742925926546,0.05183871,145.37,145.34,0.05279351]
[1742925927049,0.05183871,145.37,145.36,6.8786]
[1742925927249,0.05183871,145.37,145.36,31.9786]
[1742925928850,28.61608754,145.47,145.36,25.1]
[1742925929257,28.61608754,145.48,145.36,25.1]
[1742925929556,62.0,145.46,145.41,6.876]
[1742925929957,62.0,145.46,145.42,0.04688444]
[1742925930159,87.1,145.46,145.42,0.04688444]
[1742925930553,87.1,145.46,145.37,25.1]
[1742925931051,6.876,145.42,145.37,25.1]
[1742925931453,25.1,145.46,145.36,25.1]
[1742925931658,6.8762,145.41,145.37,6.8779]
[1742925931859,6.8762,145.41,145.4,0.05066877]
[1742925934363,68.8762,145.41,145.4,0.05066877]
[1742925935959,62.0,145.41,145.4,0.05066877]
[1742925936362,62.0,145.41,145.4,25.15066877]
[1742925937268,62.0,145.41,145.4,32.02736877]
[1742925937471,0.04870012,145.42,145.4,25.15066877]
[1742925937668,0.04870012,145.42,145.41,6.8762]
[1742925939673,0.04870012,145.42,145.4,25.15066877]
[1742925940374,62.0,145.41,145.4,25.15066877]
[1742925945980,68.8762,145.41,145.4,25.15066877]
[1742925946176,68.8762,145.41,145.4,0.05066877]
[1742925946378,62.0,145.41,145.4,0.05066877]
[1742925947481,68.8762,145.41,145.4,0.05066877]
[1742925947681,62.0,145.41,145.4,0.05066877]
[1742925948076,68.8762,145.41,145.4,0.05066877]
[1742925948275,62.0,145.41,145.4,0.05066877]
[1742925949575,62.0,145.41,145.35,25.1]
[1742925949776,62.0,145.41,145.33,24.31]
[1742925949973,6.8787,145.36,145.33,24.31]
[1742925950172,10.29439924,145.4,145.33,24.31]
[1742925950479,6.8795,145.34,145.33,24.31]
[1742925953182,68.8795,145.34,145.33,24.31]
[1742925955076,62.0,145.34,145.33,24.31]
[1742925955281,0.04622837,145.35,145.33,24.31]
[1742925956382,0.04622837,145.35,145.33,31.1897]
[1742925956582,0.04622837,145.35,145.33,24.31]
[1742925957084,0.04622837,145.35,145.34,6.8795]
[1742925958987,0.04622837,145.35,145.33,31.1898]
[1742925961280,0.04622837,145.35,145.34,6.8795]
[1742925961689,0.04622837,145.35,145.33,31.1897]
[1742925961888,0.04622837,145.35,145.33,24.31]
[1742925962087,0.04622837,145.35,145.34,6.8795]
[1742925962388,0.04622837,145.35,145.33,24.31]
[1742925962589,0.04622837,145.35,145.33,31.1896]
[1742925963284,0.04622837,145.35,145.34,6.8795]
[1742925968194,0.04622837,145.35,145.33,24.31]
[1742925969089,0.04622837,145.35,145.34,6.8795]
[1742925969685,62.0,145.38,145.37,6.8781]
[1742925969893,62.0,145.38,145.36,25.1]
[1742925970297,62.0,145.38,145.36,31.9784]
[1742925970596,62.0,145.38,145.36,25.1]
[1742925970793,68.92472426,145.38,145.36,25.14770831]
[1742925970994,62.04682426,145.38,145.36,0.04770831]
[1742925973198,68.92452426,145.38,145.36,0.04770831]
[1742925973401,62.04682426,145.38,145.36,0.04770831]
[1742925974094,62.04682426,145.38,145.36,6.92630831]
[1742925974499,62.04682426,145.38,145.36,0.04770831]
[1742925975798,62.04682426,145.38,145.37,6.8781]
[1742925976698,62.04682426,145.38,145.36,6.92600831]
[1742925977295,62.04682426,145.38,145.36,0.04770831]
[1742925979201,68.92452426,145.38,145.36,0.04770831]
[1742925980003,62.04682426,145.38,145.36,0.04770831]
[1742925980504,62.04682426,145.38,145.36,6.92600831]
[1742925981406,62.04682426,145.38,145.37,6.8781]
[1742925981707,62.04682426,145.38,145.36,0.04770831]
[1742925982405,62.04682426,145.38,145.36,6.92630831]
[1742925983009,62.04682426,145.38,145.36,0.04770831]
[1742925983598,62.04682426,145.38,145.36,6.92630831]
[1742925983900,62.04682426,145.38,145.37,25.08]
[1742925984105,6.8751,145.44,145.4,6.8764]
[1742925984406,25.08,145.46,145.37,25.08]
[1742925984901,6.876,145.42,145.37,31.9578]
[1742925985106,6.876,145.42,145.37,25.08]
[1742925985403,25.08,145.46,145.38,0.05103704]
[1742925986006,6.876,145.42,145.38,6.92833704]
[1742925986301,6.876,145.42,145.38,0.05103704]
[1742925986503,25.08,145.46,145.38,0.05103704]
[1742925987006,68.8747,145.45,145.41,6.8759]
[1742925987209,62.0,145.45,145.41,6.8759]
[1742925987399,62.0,145.45,145.42,0.04560998]
[1742925988013,68.8745,145.45,145.42,0.04560998]
[1742925988504,68.8745,145.45,145.42,6.92130998]
[1742925989409,68.8745,145.45,145.42,0.04560998]
[1742925989410,62.0,145.45,145.42,0.04560998]
[1742925990305,62.0,145.45,145.43,6.8753]
[1742925990707,62.0,145.45,145.42,0.04560998]
[1742925991706,62.0,145.45,145.42,6.92120998]
[1742925991905,62.0,145.45,145.42,0.04560998]
[1742925993009,68.8746,145.45,145.42,0.04560998]
[1742925993405,62.0,145.45,145.42,0.04560998]
[1742925993601,6.8753,145.43,145.42,0.04560998]
[1742925997004,6.8751,145.44,145.42,0.04560998]
[1742925997409,25.08,145.46,145.42,0.04560998]
[1742925997610,68.8753,145.43,145.42,0.04560998]
[1742925999212,68.88,145.43,145.34,23.98]
[1742925999415,25.08,145.42,145.34,23.98]
[1742926000212,6.879,145.36,145.34,23.98]
[1742926000622,6.879,145.36,145.34,24.02899389]
[1742926001117,6.8783,145.37,145.34,24.02899389]
[1742926001318,0.04392962,145.39,145.34,24.02899389]
[1742926001510,6.8784,145.37,145.34,24.02899389]
[1742926002712,62.0,145.35,145.34,24.02899389]
[1742926003320,68.8791,145.35,145.34,24.02899389]
[1742926003618,62.0,145.35,145.34,24.02899389]
[1742926004219,62.0,145.35,145.34,30.90849389]
[1742926004419,62.0,145.35,145.34,24.02899389]
[1742926005313,129.65648038,145.45,145.34,24.02899389]
[1742926005519,129.65648038,145.45,145.34,23.98]
[1742926005917,6.8756,145.43,145.38,6.8773]
[1742926006116,104.57648038,145.45,145.39,25.08]
[1742926006321,104.57648038,145.45,145.4,25.08]
[1742926006522,111.45088038,145.45,145.41,25.1238224]
[1742926006817,104.57648038,145.45,145.41,25.1238224]
[1742926007221,6.8741,145.46,145.41,31.9998224]
[1742926007719,28.61608754,145.48,145.41,31.9998224]
[1742926007921,6.8745,145.45,145.41,31.9998224]
[1742926008225,62.0,145.44,145.41,25.1238224]
[1742926008427,68.8749,145.44,145.41,25.1238224]
[1742926008924,62.0,145.44,145.41,25.1238224]
[1742926009420,62.0,145.44,145.42,6.8755]
[1742926009627,28.61608754,145.48,145.41,25.1238224]
[1742926010920,28.61608754,145.48,145.46,6.8736]
[1742926011125,28.61608754,145.48,145.47,25.08]
[1742926011518,28.61608754,145.48,145.47,31.9534]
[1742926011923,0.47650122,145.5,145.47,25.08]
[1742926012621,62.0,145.49,145.47,25.08]
[1742926013121,68.8726,145.49,145.47,25.08]
[1742926013828,6.8729,145.48,145.47,25.08]
[1742926014026,0.47650122,145.5,145.46,0.04872263]
[1742926014426,6.8732,145.48,145.46,0.04872263]
[1742926016018,0.47650122,145.5,145.46,0.04872263]
[1742926016423,7.34870122,145.5,145.47,6.8733]
[1742926016924,62.0,145.48,145.47,6.8733]
[1742926018036,62.0,145.48,145.46,6.92232263]
[1742926018529,62.0,145.48,145.46,0.04872263]
[1742926018730,62.0,145.48,145.46,6.92232263]
[1742926020130,62.0,145.48,145.46,0.04872263]
[1742926022128,62.0,145.48,145.47,6.8734]
[1742926022328,62.0,145.48,145.46,0.04872263]
[1742926022731,62.0,145.48,145.46,6.92232263]
[1742926023331,62.0,145.48,145.47,6.8734]
[1742926024330,62.0,145.48,145.46,6.92232263]
[1742926024534,62.0,145.48,145.46,0.04872263]
[1742926025231,6.8734,145.47,145.46,0.04872263]
[1742926025428,87.06,145.48,145.44,20.13]
[1742926025631,6.8743,145.45,145.44,20.13]
[1742926028633,68.8743,145.45,145.44,20.13]
[1742926033940,6.8748,145.44,145.43,0.05246153]
[1742926034241,38.8602514,145.46,145.36,25.06]
[1742926034441,38.808,145.46,145.35,6.8788]
[1742926034642,6.8779,145.38,145.35,6.8788]
[1742926035138,0.04965857,145.38,145.36,6.8784]
[1742926035343,0.04965857,145.38,145.35,0.04807572]
[1742926035745,6.8755,145.43,145.35,0.04807572]
[1742926036044,6.8755,145.43,145.34,25.06]
[1742926036239,6.8755,145.43,145.4,6.8765]
[1742926036445,6.8758,145.42,145.4,6.8765]
[1742926036643,356.0,145.49,145.38,25.06]
[1742926036839,25.06,145.48,145.42,0.04439293]
[1742926037044,62.0,145.43,145.42,0.04439293]
[1742926037751,68.8753,145.43,145.42,0.04439293]
[1742926042056,62.0,145.43,145.42,0.04439293]
[1742926042658,68.8753,145.43,145.42,0.04439293]
[1742926043853,62.0,145.43,145.42,0.04439293]
[1742926044356,62.0,145.43,145.42,6.92019293]
[1742926044547,62.0,145.43,145.42,32.00019293]
[1742926044752,0.04858444,145.45,145.42,25.12439293]
[1742926044947,0.04858444,145.45,145.44,6.8748]
[1742926045854,62.04858444,145.45,145.44,6.8748]
[1742926047458,62.04858444,145.45,145.43,6.875]
[1742926047760,62.04858444,145.45,145.42,25.12439293]
[1742926048958,62.04858444,145.45,145.44,6.8748]
[1742926052766,62.04858444,145.45,145.42,0.04439293]
[1742926054361,62.04858444,145.45,145.42,6.91989293]
[1742926054766,62.04858444,145.45,145.42,0.04439293]
[1742926055668,68.92298444,145.45,145.42,0.04439293]
[1742926056262,6.8749,145.44,145.42,0.04439293]
[1742926057463,62.04858444,145.45,145.42,0.04439293]
[1742926057666,62.04858444,145.45,145.44,6.8748]
[1742926059368,62.04858444,145.45,145.43,6.8751]
[1742926061069,68.92318444,145.45,145.42,6.92009293]
[1742926061467,62.04858444,145.45,145.43,6.8752]
[1742926061763,62.04858444,145.45,145.42,0.04439293]
[1742926061959,62.04858444,145.45,145.42,25.10439293]
[1742926062159,62.04858444,145.45,145.44,6.8748]
[1742926062565,0.47650122,145.5,145.42,25.10439293]
[1742926062767,0.47650122,145.5,145.48,6.8725]
[1742926062968,0.47650122,145.5,145.46,25.06]
[1742926063262,0.47650122,145.5,145.47,25.06]
[1742926063471,62.0,145.49,145.48,6.8729]
[1742926064566,62.0,145.49,145.47,0.05271318]
[1742926064769,25.53650122,145.5,145.47,0.05271318]
[1742926065267,6.8729,145.48,145.47,0.05271318]
[1742926065468,25.53650122,145.5,145.39,25.06]
[1742926065674,25.53650122,145.5,145.4,6.8764]
[1742926065865,25.53650122,145.5,145.39,25.06]
[1742926066576,0.05217702,145.46,145.43,0.0529865]
[1742926067071,6.8751,145.44,145.43,0.0529865]
[1742926067665,68.8751,145.44,145.43,0.0529865]
[1742926072567,62.0,145.44,145.43,0.0529865]
[1742926073778,62.0,145.44,145.43,6.9282865]
[1742926073973,62.0,145.44,145.43,0.0529865]
[1742926074276,62.0,145.44,145.43,6.9282865]
[1742926074474,62.0,145.44,145.43,0.0529865]
[1742926075274,0.05217702,145.46,145.43,0.0529865]
[1742926075871,0.05217702,145.46,145.45,6.8743]
[1742926076072,0.05217702,145.46,145.43,0.0529865]
[1742926076073,0.47650122,145.5,145.43,0.0529865]
[1742926076679,0.47650122,145.5,145.44,25.06]
[1742926077584,0.47650122,145.5,145.49,6.8724]
[1742926077879,0.47650122,145.5,145.49,31.9324]
[1742926078182,62.47650122,145.5,145.49,31.9324]
[1742926085388,0.47650122,145.5,145.49,31.9324]
[1742926086983,0.47650122,145.5,145.48,0.05255055]
[1742926087584,0.47650122,145.5,145.49,6.8724]
[1742926088387,62.47650122,145.5,145.49,6.8724]
[1742926090592,0.47650122,145.5,145.49,6.8724]
[1742926091599,25.04,145.59,145.48,0.05255055]
[1742926091805,31.9079,145.59,145.48,0.05255055]
[1742926092098,31.9079,145.59,145.47,38.7862]
[1742926092099,31.9079,145.59,145.55,6.8692]
[1742926092489,31.9079,145.59,145.56,0.04462764]
[1742926093095,28.61608754,145.63,145.56,0.04462764]
[1742926093494,62.0,145.62,145.56,0.04462764]
[1742926093694,62.0,145.62,145.57,6.8685]
[1742926093893,6.8668,145.61,145.57,6.8685]
[1742926094089,28.61608754,145.63,145.58,6.8681]
[1742926094799,28.61608754,145.63,145.59,0.04492923]
[1742926094992,6.8664,145.62,145.57,6.8686]
[1742926095188,6.8664,145.62,145.6,0.0529412]
[1742926095398,28.61608754,145.63,145.58,6.8679]
[1742926095599,35.48208754,145.63,145.6,0.04703471]
[1742926095994,28.61608754,145.63,145.6,0.04843956]
[1742926096901,381.04,145.66,145.6,0.04843956]
[1742926097102,62.0,145.62,145.6,0.06844302]
[1742926097705,68.8666,145.62,145.6,0.06844302]
[1742926098898,62.0,145.62,145.6,6.93544302]
[1742926100302,62.0,145.62,145.6,0.06844302]
[1742926101504,6.8668,145.61,145.6,0.06844302]
[1742926101798,62.0,145.62,145.6,0.06844302]
[1742926102107,68.8666,145.62,145.6,0.06844302]
[1742926102402,62.0,145.62,145.6,0.06844302]
[1742926102604,6.8668,145.61,145.6,0.06844302]
[1742926103204,68.8665,145.62,145.6,0.06844302]
[1742926104303,62.0,145.62,145.6,0.06844302]
[1742926105107,68.8663,145.62,145.6,0.06844302]
[1742926105313,62.0,145.62,145.6,0.06844302]
[1742926106307,68.8663,145.62,145.6,0.06844302]
[1742926106814,68.8663,145.62,145.6,6.93564302]
[1742926107109,62.0,145.62,145.6,6.93564302]
[1742926109209,68.8664,145.62,145.6,0.06844302]
[1742926109812,68.8664,145.62,145.6,6.93564302]
[1742926110011,62.0,145.62,145.6,6.93564302]
[1742926110411,62.0,145.62,145.61,6.8668]
[1742926112215,62.0,145.62,145.6,25.08844302]
[1742926113316,62.0,145.62,145.61,6.8668]
[1742926118418,62.0,145.62,145.6,31.95534302]
[1742926119318,62.0,145.62,145.61,6.8668]
[1742926123620,62.0,145.62,145.6,0.06844302]
[1742926124226,68.8666,145.62,145.6,0.06844302]
[1742926125530,6.8668,145.61,145.6,0.06844302]
[1742926130134,6.86,145.61,145.49,358.0]
[1742926130336,10.26622797,145.6,145.51,25.02]
[1742926130525,25.02,145.59,145.51,6.8712]
[1742926130726,25.02,145.59,145.5,25.02]
[1742926130929,25.02,145.59,145.52,6.8709]
[1742926131130,0.04961292,145.56,145.53,0.04904515]
[1742926132026,0.04961292,145.56,145.55,6.8696]
[1742926132637,0.04961292,145.56,145.54,6.8698]
[1742926133037,62.0,145.55,145.54,6.8698]
[1742926134636,62.0,145.55,145.53,6.91934515]
[1742926136837,62.0,145.55,145.54,6.8701]
[1742926137240,62.0,145.55,145.54,31.8901]
[1742926137441,62.0,145.55,145.54,25.02]
[1742926138341,62.0,145.55,145.54,31.8901]
[1742926139140,62.0,145.55,145.54,25.02]
[1742926140143,62.0,145.55,145.54,31.8901]
[1742926143646,0.04961292,145.56,145.55,6.8696]
[1742926145341,0.04961292,145.56,145.54,31.8897]
[1742926145546,0.04961292,145.56,145.54,25.02]
[1742926146544,0.04961292,145.56,145.55,6.8696]
[1742926149652,62.04961292,145.56,145.55,6.8696]
[1742926150552,0.04961292,145.56,145.55,6.8696]
[1742926153354,62.04961292,145.56,145.55,6.8696]
[1742926159047,50.43751292,145.56,145.55,6.8696]
[1742926159359,25.02,145.63,145.53,25.06904515]
[1742926159553,6.8681,145.59,145.53,25.02]
[1742926159756,25.02,145.63,145.5,226.62]
[1742926159955,25.02,145.63,145.52,25.02]
[1742926160155,68.8683,145.58,145.52,25.02]
[1742926160457,68.8683,145.58,145.56,0.04711414]
[1742926160958,62.0,145.58,145.56,0.04711414]
[1742926164655,62.0,145.58,145.57,6.8687]
[1742926173764,6.8663,145.63,145.6,6.8671]
[1742926173960,28.67960519,145.67,145.6,6.8671]
[1742926174165,6.8656,145.64,145.6,6.91579795]
[1742926174559,25.02,145.66,145.6,0.04869795]
[1742926174759,6.8663,145.63,145.6,0.04869795]
[1742926175464,6.8663,145.63,145.6,6.91569795]
[1742926176164,6.8663,145.63,145.61,6.8668]
[1742926176761,62.0,145.62,145.61,6.8668]
[1742926178169,62.0,145.62,145.6,0.04869795]
[1742926178366,68.8664,145.62,145.6,0.04869795]
[1742926179464,62.0,145.62,145.6,0.04869795]
[1742926180271,68.8667,145.62,145.6,6.91569795]
[1742926180473,68.8667,145.62,145.6,0.04869795]
[1742926182171,6.8668,145.61,145.6,0.04869795]
[1742926183073,68.8666,145.62,145.6,0.04869795]
[1742926183672,6.8668,145.61,145.6,0.04869795]
[1742926185167,68.8665,145.62,145.6,0.04869795]
[1742926185473,62.0,145.62,145.6,0.04869795]
[1742926185679,6.8668,145.61,145.6,0.04869795]
[1742926185869,62.0,145.62,145.6,0.04869795]
[1742926186064,62.0,145.62,145.6,6.91589795]
[1742926186571,68.8665,145.62,145.6,6.91589795]
[1742926187176,62.0,145.62,145.6,0.04869795]
[1742926187779,68.8666,145.62,145.6,6.91579795]
[1742926188972,62.0,145.62,145.61,6.8668]
[1742926189475,62.0,145.62,145.6,0.04869795]
[1742926189674,68.8663,145.62,145.6,6.91559795]
[1742926190278,62.0,145.62,145.61,6.8668]
[1742926190979,68.8663,145.62,145.61,6.8668]
[1742926191872,68.8663,145.62,145.6,0.04869795]
[1742926191873,68.8663,145.62,145.6,6.91579795]
[1742926193779,62.0,145.62,145.61,6.8668]
[1742926195979,62.0,145.62,145.6,0.04869795]
[1742926196880,6.8668,145.61,145.6,0.04869795]
[1742926197082,62.0,145.62,145.6,0.04869795]
[1742926197483,68.8666,145.62,145.6,0.04869795]
[1742926198584,68.8666,145.62,145.6,6.91579795]
[1742926198987,68.8666,145.62,145.6,0.04869795]
[1742926200284,68.8666,145.62,145.6,6.91589795]
[1742926200484,62.0,145.62,145.6,6.91589795]
[1742926200688,62.0,145.62,145.61,6.8668]
[1742926201379,62.0,145.62,145.6,0.04869795]
[1742926201575,6.8668,145.61,145.6,0.04869795]
[1742926202175,68.8666,145.62,145.6,0.04869795]
[1742926204085,62.0,145.62,145.6,6.91579795]
[1742926204276,62.0,145.62,145.6,0.04869795]
[1742926204479,62.0,145.62,145.61,6.8668]
[1742926205484,28.69295239,145.69,145.6,25.04869795]
[1742926205781,28.69295239,145.69,145.64,6.8653]
[1742926205782,53.69295239,145.69,145.64,6.8653]
[1742926206180,6.8641,145.67,145.64,6.8653]
[1742926206687,28.69295239,145.69,145.63,0.04605383]
[1742926207283,28.69295239,145.69,145.64,25.0]
[1742926207679,28.69295239,145.69,145.67,6.8636]
[1742926207882,28.69295239,145.69,145.64,25.0]
[1742926208085,28.69295239,145.69,145.67,0.04578015]
[1742926208485,28.69295239,145.72,145.67,0.04578015]
[1742926208689,62.0,145.71,145.67,0.04578015]
[1742926208989,28.69295239,145.72,145.67,0.04578015]
[1742926208990,28.69295239,145.72,145.68,25.0]
[1742926209489,28.69295239,145.72,145.71,6.8621]
[1742926209688,28.69295239,145.72,145.68,25.0]
[1742926209888,28.69295239,145.72,145.7,0.04740692]
[1742926210689,28.69295239,145.72,145.71,6.8621]
[1742926210989,28.69295239,145.72,145.7,0.04740692]
[1742926211186,114.77180958,145.74,145.7,17.17761381]
[1742926211387,29.90557389,145.74,145.72,10.27020689]
[1742926211583,29.90557389,145.74,145.73,251.48]
[1742926211785,29.90557389,145.74,145.73,258.3411]
[1742926212279,29.90557389,145.74,145.73,265.2011]
[1742926212280,0.72054982,145.74,145.73,265.2011]
[1742926212485,0.72054982,145.74,145.73,251.48]
[1742926212991,215.1180792,145.83,145.73,251.48]
[1742926213189,6.8591,145.78,145.73,251.48]
[1742926213380,6.8591,145.78,145.77,0.04390229]
[1742926213585,225.38828609,145.83,145.73,226.5]
[1742926213586,6.8601,145.76,145.73,226.5]
[1742926213883,24.98,145.79,145.73,226.5]
[1742926214089,6.8601,145.76,145.73,226.54355701]
[1742926214786,6.8603,145.75,145.73,226.54355701]
[1742926214991,24.98,145.79,145.73,226.54355701]
[1742926215391,6.8593,145.77,145.73,226.54355701]
[1742926215993,6.8597,145.76,145.73,226.54355701]
[1742926216296,68.8597,145.76,145.73,226.54355701]
[1742926217587,62.0,145.76,145.73,0.04355701]
[1742926217789,24.98,145.75,145.73,5.701e-05]
[1742926218093,24.98,145.75,145.65,6.8646]
[1742926218293,24.98,145.75,145.64,24.98]
[1742926218688,24.98,145.75,145.65,6.8647]
[1742926219187,6.8628,145.7,145.69,0.04965899]
[1742926220894,68.8628,145.7,145.69,0.04965899]
[1742926221393,6.8647,145.66,145.64,24.98]
[1742926221597,6.8647,145.66,145.62,6.866]
[1742926221996,6.8641,145.67,145.63,6.8657]
[1742926222193,6.8641,145.67,145.61,251.38]
[1742926222591,0.04792535,145.65,145.63,0.0525502]